Cogmind - Beta 16.1 @@@ ROGUE MODE // 2026.02.21 @ 05:04:31 Player: Rocket Result: Destroyed by G-34 Mercenary with Small Laser Performance ------------- Evolutions (0) 0 Regions Visited (2) 400 Robots Destroyed (23) 115 Value Destroyed (498) 498 Prototype IDs (0) 0 Alien Tech Used (0) 0 Bonus (0) 0 TOTAL SCORE: 1013 Bonus ------- None Cogmind --------- Core Integrity 0/250 Matter 255/300 Energy 265/265 System Corruption 10% Temperature Cool (6) Movement Rolling (140) Ox4 Location -10/Mines Parts ------- > --- POWER (1) -------- Improved Ion Engine > --- PROPULSION (2) --- Wheel Wheel > --- UTILITY (2) ------ Huge Storage Unit Hacking Suite > --- WEAPON (2) ------- Beam Cannon Grenade Launcher > --- INVENTORY (25) --- Light Ion Engine Wheel Wheel Wheel Wheel Huge Storage Unit Structural Scanner Sensor Array Signal Interpreter Propulsion Shielding Light EM Pulse Cannon Light EM Pulse Cannon Light EM Pulse Cannon Light EM Pulse Cannon Light Assault Rifle EMP Blaster EMP Blaster EMP Blaster Grenade Launcher Grenade Launcher Grenade Launcher Mace Peak State ------------ > --- POWER ------------ Ion Engine > --- PROPULSION ------- Wheel Wheel > --- UTILITY ---------- Huge Storage Unit Hacking Suite > --- WEAPON ----------- Beam Cannon Mace > --- INVENTORY -------- Light Ion Engine Wheel Wheel Wheel Wheel Wheel Wheel Huge Storage Unit Structural Scanner Sensor Array Signal Interpreter Propulsion Shielding EM Pulse Gun Light EM Pulse Cannon Light EM Pulse Cannon Light EM Pulse Cannon Light EM Pulse Cannon Light Assault Rifle EMP Blaster EMP Blaster EMP Blaster Grenade Launcher Grenade Launcher Grenade Launcher [Rating: 13] Favorites ----------- Power Ion Engine Engine Ion Engine Propulsion Wheel Leg Aluminum Leg Wheel Wheel Utility Huge Storage Unit Device Seismic Detector Storage Huge Storage Unit Hackware Hacking Suite Protection Propulsion Shielding Weapon Light Assault Rifle Energy Gun EM Pulse Gun Energy Cannon Beam Cannon Ballistic Gun Light Assault Rifle Launcher EMP Blaster Special Weapon Welding Torch Impact Weapon Mace Build | -11 -10 -10 ------- Run | Yrd Mat Min Slots Evolved . | . . . Power . | . . . Propulsion . | . . . Utility . | . . . Weapon . | . . . Parts Attached 30 | 6 16 8 Power 4 | 1 1 2 Engine 4 | 1 1 2 Core . | . . . Reactor . | . . . Propulsion 8 | 2 4 2 Treads . | . . . Leg 4 | 2 2 . Wheel 4 | . 2 2 Hover . | . . . Flight . | . . . Utility 6 | 1 5 . Device 1 | . 1 . Storage 3 | 1 2 . Processor . | . . . Hackware 1 | . 1 . Protection 1 | . 1 . Artifact . | . . . Weapon 12 | 2 6 4 Energy Gun 2 | 1 . 1 Energy Cannon 3 | . 2 1 Ballistic Gun 3 | 1 2 . Ballistic Cannon . | . . . Launcher 2 | . . 2 Special Weapon 1 | . 1 . Impact Weapon 1 | . 1 . Slashing Weapon . | . . . Piercing Weapon . | . . . Special Melee Weapon . | . . . Unidentified Prototypes . | . . . Corrupted Parts 3 | . . 3 System Corruption 9 | . . 9 Parts Lost 4 | . . 4 Power 1 | . . 1 Propulsion 2 | . . 2 Utility . | . . . Weapon 1 | . . 1 Highest Loss Streak 3 | . . 3 To Critical Strikes . | . . . Average Backups 13 | 1 12 21 Power 1 | . 1 . Propulsion 2 | . 2 4 Utility 1 | . 1 5 Weapon 7 | . 7 11 Tool/Special . | . . . Unused Backups 22 | . 5 17 Power 1 | . 1 . Propulsion 6 | . 2 4 Utility 4 | . . 4 Weapon 11 | . 2 9 Tool/Special . | . . . Average Slot Usage (%) 93 | . 94 90 Engine 13 | . 14 13 Leg 8 | . 11 . Wheel 19 | . 16 27 Storage 14 | . 14 14 Hackware 3 | . . 14 Protection 5 | . 6 . Energy Gun 1 | . 1 2 Energy Cannon 3 | . 3 3 Ballistic Gun 15 | . 19 . Launcher 2 | . . 12 Impact Weapon 3 | . 3 1 Peak Build Rating 13 | 6 13 13 Average Rating 8 | 4 8 11 On Entrance 6 | . 6 13 Avg Prop Armor Cover (%) . | . . . Naked Turns . | . . . Heaviest Build 93 | 13 91 93 Greatest Support 20 | 20 20 20 Greatest Overweight (x) 4 | . 4 4 Average Overweight (x) 1 | . 1 4 Largest Inventory Capacity 25 | 8 25 25 Average Capacity 16 | 7 15 25 Most Carried 25 | 3 25 24 Average Carried 13 | 1 12 21 Final Capacity 25 | 8 25 25 Final Carried 24 | 3 24 22 Class Distribution -------------------- 100% | Mutant Dominant Class ---------------- Mutant | -10/Materials Mutant | -10/Mines Resources | -11 -10 -10 ----------- Run | Yrd Mat Min Matter Collected 614 | 200 317 97 Remotely . | . . . Salvage Created 597 | . 377 220 Parts 42 | . 28 14 Haulers Intercepted . | . . . Recyclers Shooed . | . . . Parts Field Recycled . | . . . Retrieved Matter . | . . . Parts Self-Destructed . | . . . Prevented . | . . . Parts Restored . | . . . Kills | -11 -10 -10 ------- Run | Yrd Mat Min Combat Hostiles Destroyed 21 | . 15 6 Melee 2 | . 2 . Guns 13 | . 12 1 AOE 4 | . . 4 Classes Destroyed 5 | . 3 2 Worker 1 | . . 1 Operator 1 | . 1 . Swarmer 12 | . 9 3 Grunt 7 | . 6 1 Sentry 2 | . . 2 Best Kill Streak 4 | . 4 3 Combat Bots Only 4 | . 4 3 Max Kills in Single Turn 2 | . 1 2 Gunslinging . | . . . Exploded 2 | . . 2 Melee 1 | . 1 . Uniques/NPCs Destroyed . | . . . Combat | -11 -10 -10 -------- Run | Yrd Mat Min Hostile Shots Fired 137 | . 81 56 Missed 43 | . 24 19 Hits 94 | . 57 37 Projectile 94 | . 57 37 Critical Strikes 1 | . . 1 Damage Taken 991 | . 509 482 Core 254 | . 120 134 Absorbed by Shields . | . . . Core Remaining (%) 100 | 100 . . Volleys Fired 65 | . 49 16 Largest 2 | . 2 1 Hottest 60 | . 60 40 Shots Fired 108 | . 91 17 Gun 93 | . 85 8 Cannon 1 | . . 1 Launcher 8 | . . 8 Special 6 | . 6 . Kinetic 76 | . 76 . Thermal 7 | . 6 1 Explosive 1 | . . 1 Electromagnetic 24 | . 9 15 Robot Hit Streak 7 | . 7 7 Robot Miss Streak 4 | . 4 4 Penetration Max . | . . . Secondary Targets 1 | . 1 . Max Gunslinging Chain 1 | . 1 . Shots Hit Robots 69 | . 53 16 Core Hits 35 | . 28 7 Critical Kills 1 | . 1 . Critical Parts Destroyed . | . . . Critical Strikes 1 | . 1 . Smash 1 | . 1 . Melee Attacks 16 | . 12 4 Impact 16 | . 12 4 Slashing . | . . . Piercing . | . . . Sneak Attacks 2 | . 1 1 Combat Hostiles 1 | . . 1 Follow-up Attacks . | . . . Damage Inflicted 1161 | . 695 466 Guns 428 | . 349 79 Cannons . | . . . Explosions 299 | . . 299 Melee 434 | . 346 88 Ramming . | . . . Kinetic 316 | . 316 . Thermal 35 | . . 35 Explosive 73 | . . 73 Electromagnetic 303 | . 33 270 Impact 434 | . 346 88 Slashing . | . . . Piercing . | . . . Highest Corruption 10 | . . 10 Average Corruption 3 | . . 3 Corruption Purged . | . . . Corruption Blocked . | . . . Effects 5 | . . 5 Matter Fused 2 | . . 2 Energy Discharges 1 | . . 1 Data Loss (minor) 1 | . . 1 Data Loss (major) 1 | . . 1 Overload Shots . | . . . Overflow Damage 74 | . 20 54 Projectiles . | . . . Explosions 38 | . . 38 Melee 36 | . 20 16 Knockbacks 1 | . 1 . Impact 1 | . 1 . Kinetic . | . . . Secondary . | . . . Self-Inflicted Damage 76 | . . 76 Shots 4 | . . 4 Rammed . | . . . Targets Rammed . | . . . Kicked . | . . . Crushed . | . . . Highest Temperature 45 | . 40 45 Average Temperature 21 | . 19 25 Received Heat Transfer 207 | . 96 111 Siege Activations . | . . . Martial Activations . | . . . Shielding Activations . | . . . Robots Disrupted . | . . . Combat Hostiles . | . . . Robots Corrupted 2 | . 1 1 Combat Hostiles 2 | . 1 1 Parts Fried 5 | . 2 3 Impact Corruptions 4 | . 3 1 Robots Melted . | . . . Combat Hostiles . | . . . Parts Melted . | . . . Heat Transferred 50 | . . 50 Parts Sabotaged . | . . . Parts Stolen . | . . . Parts Stripped . | . . . Power Chain Reactions 1 | . . 1 Alert | -11 -10 -10 ------- Run | Yrd Mat Min Maximum Alert Level . | . . . Low Security (%) 100 | 100 100 100 Level 1 . | . . . Level 2 . | . . . Level 3 . | . . . Level 4 . | . . . Level 5 . | . . . High Security . | . . . Max Security . | . . . Peak Influence 155 | . 155 66 Initial 22 | . . 22 Average 40 | . 48 22 Influence Increases 568 | . 395 173 Destroy 0b10 Robot/C 420 | . 300 120 Destroy 0b10 Robot/NC 10 | . 5 5 Destroy Leader 80 | . 60 20 Disable Machine 30 | . 15 15 Destroy Structure 13 | . . 13 Lose Combat Pursuer 15 | . 15 . Influence Decreases 515 | . 337 178 Entered New Map 36 | . . 36 Time Decay 439 | . 337 102 Lost Part 40 | . . 40 Squads Dispatched 3 | . 3 . Investigation 2 | . 2 . Extermination . | . . . Reinforcement 1 | . 1 . Assault . | . . . Garrison . | . . . Intercept . | . . . Searches Triggered . | . . . Construction Impeded . | . . . Haulers Reinforced . | . . . Active Scanning Responses . | . . . Cargo Convoy Interrupts . | . . . Stealth | -11 -10 -10 --------- Run | Yrd Mat Min Distress Signals 3 | . 3 . Communications Jammed . | . . . Distress Signals . | . . . Times Spotted 32 | . 25 7 Peak Tracking Total 5 | . 5 3 Tactical Retreats 1 | . 1 . Traps | -11 -10 -10 ------- Run | Yrd Mat Min Traps Triggered 1 | . 1 . Indirectly . | . . . Trap Hack Attempts . | . . . Triggered . | . . . Disarmed . | . . . Reprogrammed . | . . . Reused . | . . . Traps Extracted . | . . . Installed . | . . . Triggered . | . . . Machines | -11 -10 -10 ---------- Run | Yrd Mat Min Machines Disabled 4 | . 1 3 Max in Single Turn 2 | . 1 2 Machines Repaired . | . . . Machines Dismantled . | . . . Machines Sabotaged . | . . . Overloaded Fab Kills . | . . . Hacking | -11 -10 -10 --------- Run | Yrd Mat Min Machines Accessed 3 | . 3 . Terminals 3 | . 3 . Fabricators . | . . . Repair Stations . | . . . Recycling Units . | . . . Scanalyzers . | . . . Garrison Access . | . . . Total Hacks 9 | . 9 . Successful 2 | . 2 . Failed 7 | . 7 . Catastrophic 4 | . 4 . Database Lockouts . | . . . Manual 8 | . 8 . Terminals 9 | . 9 . Fabricators . | . . . Repair Stations . | . . . Recycling Units . | . . . Scanalyzers . | . . . Garrison Access . | . . . Terminal Hacks 2 | . 2 . Record 1 | . 1 . Part Schematic 1 | . 1 . Fabricator Hacks . | . . . Repair Station Hacks . | . . . Recycling Unit Hacks . | . . . Scanalyzer . | . . . Garrison Access Hacks . | . . . Unauthorized Hacks . | . . . Terminals . | . . . Fabricators . | . . . Repair Stations . | . . . Recycling Units . | . . . Scanalyzers . | . . . Garrison Access . | . . . Data Cores Recovered . | . . . Used . | . . . Hacking Detections 3 | . 3 . Full Trace Events 3 | . 3 . Feedback Events . | . . . Feedback Blocked . | . . . Robot Schematics Acquired . | . . . Robots Built . | . . . Authchips . | . . . Time . | . . . Total Robot Build Rating . | . . . Part Schematics Acquired 1 | . 1 . Parts Built . | . . . Authchips . | . . . Time . | . . . Total Part Build Rating . | . . . Part Studies Acquired . | . . . Parts Repaired . | . . . Time . | . . . Parts Recycled . | . . . Recycled Matter . | . . . Retrieved Matter . | . . . Retrieved Components . | . . . Parts Scanalyzed . | . . . Part Schematics Acquired . | . . . Parts Damaged . | . . . Bothacking | -11 -10 -10 ------------ Run | Yrd Mat Min Used RIF Installer . | . . . Robots Hacked . | . . . Non-combat . | . . . Combat . | . . . Robot Hacks Applied . | . . . Relay Couplers Released . | . . . Fabnet Peak Effective % . | . . . Robots Rewired . | . . . Allies Hacked . | . . . Hacks Repelled . | . . . Allies | -11 -10 -10 -------- Run | Yrd Mat Min Total Allies . | . . . Largest Group . | . . . Highest-Rated Group . | . . . Highest-Rated Ally . | . . . Total Orders . | . . . Ally Attacks . | . . . Total Damage . | . . . Kills . | . . . Allies Corrupted . | . . . Allies Melted . | . . . Intel | -11 -10 -10 ------- Run | Yrd Mat Min Active Infowar (turns) 82 | . 82 . Seismic 82 | . 82 . Robot Analysis Total . | . . . Derelict Logs Recovered . | . . . Drone Launches . | . . . Drone Recoveries . | . . . Exploration | -11 -10 -10 ------------- Run | Yrd Mat Min Turns Passed 1357 | 89 1010 258 Spaces Moved 866 | 68 658 140 Core 5 | 5 . . Treads . | . . . Legs 272 | 63 209 . Wheels 589 | . 449 140 Hover . | . . . Flight . | . . . Fastest Speed 50 | 50 80 140 Average Speed 120 | 114 116 140 Slowest Speed 140 | 120 140 140 Overloaded Moves . | . . . Propulsion Burnouts . | . . . Robots Hopped . | . . . Potential Cave-ins . | . . . Cave-ins Triggered . | . . . Exploration Rate (%) 39 | 5 78 35 Regions Visited 2 Branch Regions 1 Pre-discovered Areas . | . . . Known Exits Taken . | . . . Unknown Exits Taken 2 | 1 1 . Scrap Searched . | . . . Spaces Dug . | . . . Terrain Destroyed 11 | . . 11 Melee . | . . . Projectile . | . . . AOE 11 | . . 11 Terrain Rammed . | . . . Walls Destroyed . | . . . Machines Disabled . | . . . Actions | -11 -10 -10 --------- Run | Yrd Mat Min Total 1065 | 76 811 178 Wait 31 | . 24 7 Move 864 | 67 657 140 Hop . | . . . Pick Up 31 | 3 26 2 Fast Attach 20 | 6 13 1 Attach 5 | . 1 4 Detach 1 | . 1 . Swap 10 | . 7 3 Drop 22 | . 21 1 Fire 65 | . 49 16 Melee 16 | . 12 4 Ram . | . . . Kick . | . . . Crush . | . . . Escape Stasis . | . . . Rewire . | . . . Trap . | . . . Miscellaneous . | . . . Route ------- -11/Scrapyard -10/Materials (discovered 2 exits: [*Min x2]) -10/Mines History --------- Turn | Location | Event 5 | -11/Scrapyard | Discovered new exit (range 15) 90 | -11/Scrapyard | Entered Materials 319 | -10/Materials | Build established: Mutant 389 | -10/Materials | Discovered new exit (range 4) 574 | -10/Materials | Discovered new exit (range 16) 1100 | -10/Materials | Entered Mines 1104 | -10/Mines | Core integrity fell below 50% 1146 | -10/Mines | Lost 3 parts (2n1w) 1265 | -10/Mines | Core integrity fell below 20% 1316 | -10/Mines | System corruption reached 10% 1358 | -10/Mines | Destroyed by G-34 Mercenary with Small Laser Last Messages --------------- 01289_ U-05 Engineer lays Concrete. 01290_ Acquired Corrupted Imp. Ion Engine. 01293_ Integrated Corrupted Imp. Ion Engine (+4). 01295_ System corrupted: Component data lost. 01306_ Acquired Corrupted Grenade Launcher. 01308_ Integrated Corrupted Grenade Launcher (+2). 01314_ Dropped EM Pulse Gun. 01315_ Acquired Corrupted Beam Cannon. 01315_ Integrated Corrupted Beam Cannon (+3). 01315_ Complication: FCS attempts to trigger Beam Cannon. 01315_ Complication: Beam Cannon misfires. 01316_ U-05 Engineer builds a Door. 01334_ System corrupted: Substantial component data lost. 01353_ System corrupted: Matter fused (-5). 01357_ G-47 Trooper destroyed. 01357_ Laser Drill disabled. Map ----- +----------------------------------------------------+ | ?????????????????????????## #???????????? | | ?????#######?????????????## #???????????? | | ????## ## #????????????## #########???? | | ????# #???????????## #???? | | ????# #??????????## #???? | | ????## [ ##?????##### ######## #???? | | ?????### = #?????# ##?????????????? | | ???????## #?????# #??????????????? | | ????????##!%##????# ### #??????????????? | | ?????????# ####?# #?# ##??????????????? | | ?????##### ### #?## ##???????????????? | | ????## ## # #??## #????????????????? | | ????# " # ##??# #????????????????? | | ????#] + ##?# #????????????????? | | ????# [ + # ### #????????????????? | | ????#[ # # #????????????????? | | ????## ## ## ######????????????????? | | ?????####### ####k ##????????????????????? | | ???????????# ##??# ##???????????????????? | | ???????????### #???# ##??????????????????? | | ?????????????# #??## #??????????????????? | | ?????????????# #??# #??????????????????? | | ?????????????# #??# #??????????????????? | | ?????????????# #??# ##??????????????????? | | ????????????? #??## ##???????????????????? | | ????????????? #???##@ ##????????????????????? | | ?????????????# ?????# #?????????????????????? | | ?????????????? ?????# #?????????????????????? | | ?????????????? ?????# #?????????????????????? | | ?????????????? ?????# #?????????????????????? | | ???????????????????? ?????????????????????? | | ???????????????????? = #?????????????????????? | | ???????????????????? % ?????????????????????? | | ???????????????????? g ?????????????????????? | | ???????????????????? ?????????????????????? | | ???????????????????? " ?????????????????????? | | ???????????????????? """????????????????????? | | ???????????????????? ????????????????????? | | ????????????????????##???????????????????????? | | ?????????????????????????????????????????????? | | | | | | | | | | | | | | | | | | | | | +----------------------------------------------------+ Best States ------------- Heat Dissipation 25 Energy Generation 12 Energy Capacity 265 Matter Stores 300 Matter Capacity 300 Sight Range 16 Terrain Scan Density 10 Propulsion Shielding 33 Evasion (%) 55 Offensive Hacking 10 Item Schematics ----------------- Cargo Storage Unit | -10/Materials | Hacked Robot Schematics ------------------ None Fabricated ------------ Nothing Repaired ---------- Nothing Studied --------- None Alien Tech Used ----------------- None Achievements -------------- None Challenges ------------ None Game ------ Seed LightningWarpKinecellerator Manual? 0 Play Time 00:08:45 Cumulative 95.3 hours Start 2026.02.21 @ 04:57:17 End 2026.02.21 @ 05:04:31 Sessions 1 Manual Loads 0 Difficulty Rogue Special Mode None Game No. 149 Rogue 149 Adventurer 0 Explorer 0 Win Type - Total 0 Types 0/0/0/0/0/0/0/0/0/0 Lore% 17 Gallery% 38 Achievement% 27 Wizard Run 0 Options --------- Layout 1 ASCII 0 Keyboard 0 Movement Mouse Keybinds 0 Fullscreen 2 Font 24/Smallcaps Map View 50x35 Zoom Use 34% Tactical HUD 1 Map Filters NONE Filters NONE Steam 1 RUN: 8e0a3886-2886-4736-8ee9-1914a25b4607